fUST/lending_fUST_20251201
["ID","MTS","AMOUNT","RATE_DAILY","PERIOD"]
[395299346,1764597042599,-151.0,0.00011506,2]
[395299348,1764597042608,-151.0,0.00011506,2]
[395299350,1764597042617,-151.0,0.00011506,2]
[395299352,1764597042627,-151.0,0.00011506,2]
[395299354,1764597042636,-245.695144,0.00011506,2]
[395299356,1764597042645,-151.0,0.00011506,2]
[395299357,1764597042655,-289.839638,0.00011506,2]
[395299359,1764597042664,-289.839638,0.00011506,2]
[395299361,1764597042674,-289.839638,0.00011506,2]
[395299363,1764597042683,-289.839637,0.00011506,2]
[395299365,1764597042692,-151.0,0.00011506,2]
[395299367,1764597042702,-151.0,0.00011506,2]
[395299369,1764597042711,-3000.786637,0.00011506,2]
[395299371,1764597042720,-3000.786637,0.00011506,2]
[395299373,1764597042729,-3000.786637,0.00011506,2]
[395299375,1764597042738,-3000.786636,0.00011506,2]
[395299376,1764597042747,-151.0,0.00011506,2]
[395299378,1764597042756,-151.0,0.00011506,2]
[395299380,1764597042765,-151.0,0.00011506,2]
[395299382,1764597042774,-151.0,0.00011506,2]
[395299384,1764597042783,-151.0,0.00011506,2]
[395299386,1764597042792,-151.0,0.00011506,2]
[395299388,1764597042801,-151.0,0.00011506,2]
[395299390,1764597042810,-151.0,0.00011506,2]
[395299392,1764597042819,-151.0,0.00011506,2]
[395299394,1764597042828,-668.439164,0.00011506,2]
[395299396,1764597042837,-668.439164,0.00011506,2]
[395299397,1764597042846,-357.744639,0.00011506,2]
[395299398,1764597042855,-668.439164,0.00011506,2]
[395299399,1764597042864,-357.744639,0.00011506,2]
[395299400,1764597042874,-668.439172,0.00011506,2]
[395299402,1764597042883,-357.744639,0.00011506,2]
[395299404,1764597042892,-863.690783,0.00011506,2]
[395299406,1764597042901,-863.690783,0.00011506,2]
[395299408,1764597042910,-357.744635,0.00011506,2]
[395299410,1764597042920,-863.690783,0.00011506,2]
[395299412,1764597042929,-863.690778,0.00011506,2]
[395299414,1764597042938,-3309.870826,0.00011506,2]
[395299416,1764597042947,-3309.870826,0.00011506,2]
[395299418,1764597042956,-151.0,0.00011506,2]
[395299420,1764597042965,-3309.870826,0.00011506,2]
[395299422,1764597042975,-151.0,0.00011506,2]
[395299423,1764597042984,-3309.870827,0.00011506,2]
[395299425,1764597042993,-506.126962,0.00011506,2]
[395299427,1764597043002,-151.0,0.00011506,2]
[395299429,1764597043011,-506.126962,0.00011506,2]
[395299431,1764597043020,-151.0,0.00011506,2]
[395299433,1764597043029,-151.0,0.00011506,2]
[395299435,1764597043038,-506.126962,0.00011506,2]
[395299437,1764597043049,-151.0,0.00011506,2]
[395299439,1764597043058,-506.126959,0.00011506,2]
[395299441,1764597043067,-171.744443,0.00011506,2]
[395299443,1764597043076,-171.744443,0.00011506,2]
[395299445,1764597043086,-171.744443,0.00011506,2]
[395299447,1764597043095,-171.74445,0.00011506,2]
[395299449,1764597043104,-151.0,0.00011506,2]
[395299451,1764597043113,-151.0,0.00011506,2]
[395299453,1764597043122,-151.0,0.00011506,2]
[395299455,1764597043131,-151.0,0.00011506,2]
[395299457,1764597043140,-295.667276,0.00011506,2]
[395299459,1764597043150,-228.908244,0.00011506,2]
[395299461,1764597043159,-151.0,0.00011506,2]
[395299463,1764597043169,-295.667276,0.00011506,2]
[395299465,1764597043178,-151.0,0.00011506,2]
[395299467,1764597043188,-295.667276,0.00011506,2]
[395299469,1764597043197,-151.0,0.00011506,2]
[395299471,1764597043206,-151.0,0.00011506,2]
[395299473,1764597043216,-295.667281,0.00011506,2]
[395299475,1764597043225,-256.639044,0.00011506,2]
[395299477,1764597043233,-151.0,0.00011506,2]
[395299479,1764597043242,-256.639044,0.00011506,2]
[395299481,1764597043251,-256.639044,0.00011506,2]
[395299483,1764597043260,-256.639038,0.00011506,2]
[395299485,1764597043269,-151.0,0.00011506,2]
[395299487,1764597043278,-151.0,0.00011506,2]
[395299489,1764597043287,-151.0,0.00011506,2]
[395299491,1764597043296,-151.0,0.00011506,2]
[395299493,1764597043305,-196.797493,0.00011506,2]
[395299495,1764597043314,-196.797493,0.00011506,2]
[395299497,1764597043323,-672.254428,0.00011506,2]
[395299498,1764597043331,-672.254428,0.00011506,2]
[395299500,1764597043343,-196.797493,0.00011506,2]
[395299502,1764597043352,-196.797487,0.00011506,2]
[395299504,1764597043361,-672.254428,0.00011506,2]
[395299506,1764597043370,-672.254428,0.00011506,2]
[395299508,1764597043379,-151.0,0.00011506,2]
[395299510,1764597043390,-151.0,0.00011506,2]
[395299512,1764597043399,-151.0,0.00011506,2]
[395299514,1764597043408,-252.641246,0.00011506,2]
[395299517,1764597043421,-252.641246,0.00011506,2]
[395299519,1764597043430,-252.641246,0.00011506,2]
[395299521,1764597043439,-252.641252,0.00011506,2]
[395299523,1764597043448,-151.0,0.00011506,2]
[395299525,1764597043458,-151.0,0.00011506,2]
[395299526,1764597043467,-808.421833,0.00011506,2]
[395299528,1764597043478,-151.0,0.00011506,2]
[395299531,1764597043487,-151.0,0.00011506,2]
[395299533,1764597043497,-189.608247,0.00011506,2]
[395299535,1764597043506,-808.421833,0.00011506,2]
[395299537,1764597043516,-189.608247,0.00011506,2]
[395299538,1764597043527,-808.421833,0.00011506,2]
[395299541,1764597043547,-189.608247,0.00011506,2]
[395299543,1764597043558,-808.421842,0.00011506,2]
[395299545,1764597043568,-189.608249,0.00011506,2]
[395299547,1764597043579,-151.0,0.00011506,2]
[395299549,1764597043589,-3090.126172,0.00011506,2]
[395299551,1764597043599,-151.0,0.00011506,2]
[395299553,1764597043608,-3090.126172,0.00011506,2]
[395299555,1764597043618,-151.0,0.00011506,2]
[395299557,1764597043628,-3090.126172,0.00011506,2]
[395299559,1764597043637,-3090.12617003,0.00011506,2]
[395299561,1764597043647,-151.0,0.00011506,2]
[395299563,1764597043657,-289.0349,0.00011506,2]
[395299565,1764597043666,-223.08031366,0.00011506,2]
[395299567,1764597043676,-826.233282,0.00011506,2]
[395299569,1764597043686,-826.233282,0.00011506,2]
[395299571,1764597043695,-826.233282,0.00011506,2]
[395299574,1764597043704,-826.233289,0.00011506,2]
[395299576,1764597043714,-151.0,0.00011506,2]
[395299578,1764597043723,-500.0,0.00011506,2]
[395299580,1764597043732,-500.0,0.00011507,2]
[395299582,1764597043742,-193.0,0.00011518,2]
[395299584,1764597043752,-401.47953312,0.00011553,2]
[395299586,1764597043761,-500.0,0.00011643,2]
[395299588,1764597043770,-500.0,0.0001178,2]
[395299590,1764597043780,-762.63,0.0001178,2]
[395299592,1764597043789,-500.0,0.0001178,2]
[395299594,1764597043798,-267.46074303,0.00011789,2]
[395299596,1764597043807,-500.0,0.00011917,2]
[395299598,1764597043816,-160.0,0.00012,2]
[395299600,1764597043825,-4464.0,0.00012,2]
[395299602,1764597043834,-1280.49,0.00012,2]
[395299604,1764597043843,-500.0,0.00012054,2]
[395299606,1764597043852,-500.0,0.00012054,2]
[395299608,1764597043862,-1252.5,0.00012054,2]
[395299610,1764597043872,-762.63,0.00012054,2]
[395299612,1764597043882,-500.0,0.00012054,2]
[395299614,1764597043892,-500.0,0.00012055,2]
[395299616,1764597043901,-901.0,0.000121,3]
[395299618,1764597043910,-500.0,0.00012191,2]
[395299620,1764597043920,-1280.49,0.000122,2]
[395299622,1764597043929,-720.0,0.00012294,2]
[395299624,1764597043939,-500.0,0.00012328,2]
[395299626,1764597043948,-500.0,0.00012328,2]
[395299628,1764597043958,-1252.5,0.00012328,2]
[395299630,1764597043967,-762.63,0.00012328,2]
[395299632,1764597043976,-2974.46,0.00012329,2]
[395299634,1764597043986,-11085.03,0.00012329,2]
[395299636,1764597043995,-9237.53,0.00012329,2]
[395299638,1764597044005,-7697.94,0.00012329,2]
[395299640,1764597044015,-6414.95,0.00012329,2]
[395299642,1764597044024,-5345.79,0.00012329,2]
[395299644,1764597044033,-4454.82,0.00012329,2]
[395299646,1764597044043,-3712.35,0.00012329,2]
[395299648,1764597044052,-3093.63,0.00012329,2]
[395299650,1764597044062,-2578.02,0.00012329,2]
[395299652,1764597044071,-2148.35,0.00012329,2]
[395299654,1764597044081,-1790.3,0.00012329,2]
[395299656,1764597044090,-1491.91,0.00012329,2]
[395299658,1764597044100,-1243.26,0.00012329,2]
[395299660,1764597044110,-1036.05,0.00012329,2]
[395299662,1764597044120,-863.38,0.00012329,2]
[395299664,1764597044130,-719.48,0.00012329,2]
[395299666,1764597044140,-599.57,0.00012329,2]
[395299668,1764597044150,-499.64,0.00012329,2]
[395299669,1764597044159,-416.36,0.00012329,2]
[395299671,1764597044170,-346.97,0.00012329,2]
[395299674,1764597044179,-289.14,0.00012329,2]
[395299676,1764597044189,-240.95,0.00012329,2]
[395299678,1764597044198,-200.79,0.00012329,2]
[395299680,1764597044208,-167.33,0.00012329,2]
[395299682,1764597044217,-836.67,0.00012329,2]
[395299684,1764597044227,-277.35679052,0.00012337,2]
[395299686,1764597044236,-713.74139221,0.00012344,2]
[395299688,1764597044245,-1280.49,0.000124,2]
[395299690,1764597044255,-500.0,0.00012465,2]
[395299692,1764597044265,-238.33656786,0.00012524,2]
[395299694,1764597044274,-190278.17851253,0.00012548,2]
[395299696,1764597044283,-500.0,0.00012602,2]
[395299698,1764597044292,-500.0,0.00012602,2]
[395299700,1764597044301,-1252.5,0.00012602,2]
[395299702,1764597044311,-762.63,0.00012602,2]
[395299704,1764597044320,-500.0,0.00012603,2]
[395299706,1764597044329,-500.0,0.00012739,2]
[395299708,1764597044348,-500.0,0.00012876,2]
[395299710,1764597044361,-500.0,0.00012876,2]
[395299712,1764597044370,-1252.5,0.00012876,2]
[395299714,1764597044381,-762.63,0.00012876,2]
[395299716,1764597044393,-287.61899177,0.00012885,2]
[395299718,1764597044403,-500.0,0.00013013,2]
[395299720,1764597044412,-1115.22092533,0.00013136,2]
[395299722,1764597044422,-500.0,0.0001315,2]
[395299724,1764597044431,-500.0,0.0001315,2]
[395299725,1764597044442,-1252.5,0.0001315,2]
[395299728,1764597044451,-762.63,0.0001315,2]
[395299730,1764597044460,-500.0,0.0001315,2]
[395299732,1764597044470,-500.0,0.00013151,2]
[395299733,1764597044479,-1000.0,0.000132,2]
[395299736,1764597044488,-1000.0,0.000132,2]
[395299737,1764597044497,-115.9229338,0.000132,2]
[395299773,1764597044819,-884.0770662,0.000132,2]
[395299775,1764597044829,-1000.0,0.000132,2]
[395299777,1764597044838,-1000.0,0.000132,2]
[395299779,1764597044848,-1000.0,0.000132,2]
[395299782,1764597044859,-1000.0,0.000132,2]
[395299783,1764597044869,-1000.0,0.000132,2]
[395299786,1764597044878,-115.9229338,0.000132,2]
[395299899,1764597046231,-151.0,0.00010959,2]
[395299901,1764597046240,-151.0,0.00010959,2]
[395299903,1764597046249,-151.0,0.00010959,2]
[395299905,1764597046259,-151.0,0.00010959,2]
[395299907,1764597046268,-151.0,0.00010959,2]
[395299909,1764597046277,-564.011911,0.00010959,2]
[395299911,1764597046286,-151.0,0.00010959,2]
[395299913,1764597046295,-151.0,0.00010959,2]
[395299915,1764597046304,-564.011911,0.00010959,2]
[395299917,1764597046314,-151.0,0.00010959,2]
[395299919,1764597046323,-564.011911,0.00010959,2]
[395299921,1764597046332,-151.0,0.00011232,2]
[395299923,1764597046344,-151.0,0.00011232,2]
[395299925,1764597046353,-151.0,0.00011232,2]
[395299927,1764597046362,-151.0,0.00011232,2]
[395299929,1764597046371,-151.0,0.00011232,2]
[395299931,1764597046380,-151.0,0.00011232,2]
[395299933,1764597046390,-151.0,0.00011232,2]
[395299935,1764597046399,-564.011911,0.00011232,2]
[395299937,1764597046407,-200.512628,0.00011232,2]
[395299939,1764597046416,-564.011911,0.00011232,2]
[395299940,1764597046426,-151.0,0.00011232,2]
[395299942,1764597046435,-151.0,0.00011232,2]
[395299944,1764597046444,-151.0,0.00011232,2]
[395299946,1764597046454,-151.0,0.00011232,2]
[395299948,1764597046463,-564.011911,0.00011232,2]
[395299950,1764597046472,-564.011911,0.00011232,2]
[395299953,1764597046482,-151.0,0.00011232,2]
[395299954,1764597046491,-564.011911,0.00011232,2]
[395299956,1764597046500,-151.0,0.00011232,2]
[395299959,1764597046509,-564.011911,0.00011232,2]
[395299961,1764597046519,-151.0,0.00011506,2]
[395299962,1764597046528,-151.0,0.00011506,2]
[395299964,1764597046537,-151.0,0.00011506,2]
[395299966,1764597046546,-375.20473918,0.00011506,2]
[395299972,1764597046586,-188.80717182,0.00011506,2]
[395299974,1764597046595,-151.0,0.00011506,2]
[395299976,1764597046604,-151.0,0.00011506,2]
[395299978,1764597046613,-564.011911,0.00011506,2]
[395299979,1764597046622,-151.0,0.00011506,2]
[395299981,1764597046630,-564.011911,0.00011506,2]
[395299983,1764597046640,-151.0,0.00012329,2]
[395299984,1764597046649,-19.4684245,0.00012329,2]
[395299999,1764597047383,-151.0,0.00010959,2]
[395300000,1764597047393,-564.011911,0.00010959,2]
[395300001,1764597047403,-564.011911,0.00011232,2]
[395300002,1764597047414,-564.011911,0.00011232,2]
[395300003,1764597047431,-372.55227323,0.00011506,2]
[395300016,1764597048001,-165.493541,0.00010959,2]
[395300017,1764597048012,-191.45963777,0.00011506,2]
[395300018,1764597048023,-131.5315755,0.00012329,2]
[395300019,1764597048034,-564.011911,0.00012329,2]
[395300020,1764597048044,-152.518217,0.00012329,2]
[395300021,1764597048055,-100.17250502,0.00012329,2]
[395300022,1764597048084,-165.493541,0.00011232,2]
[395300023,1764597048095,-50.82749498,0.00012329,2]
[395300024,1764597048106,-564.011911,0.00012329,2]
[395300025,1764597048117,-151.0,0.00012329,2]
[395300026,1764597048127,-564.011911,0.00012329,2]
[395300027,1764597048138,-564.011909,0.00012329,2]
[395300028,1764597048150,-884.0770662,0.000132,2]
[395300029,1764597048161,-500.0,0.00013273,2]
[395300030,1764597048172,-500.0,0.00013273,2]
[395300031,1764597048183,-500.0,0.00013273,2]
[395300032,1764597048194,-500.6792727,0.00013273,2]
[395300033,1764597048205,-502.07193132,0.00013273,2]
[395300034,1764597048216,-500.0,0.00013273,2]
[395300035,1764597048227,-393.38866433,0.00013273,2]
[395300036,1764597048238,-599.61743969,0.00013273,2]
[395300037,1764597048250,-500.0,0.00013273,2]
[395300038,1764597048260,-500.0,0.00013273,2]
[395300039,1764597048271,-500.34980917,0.00013273,2]
[395300040,1764597048281,-60.87352049,0.00013273,2]
[395300041,1764597048315,-165.493541,0.00011232,2]
[395300042,1764597048326,-400.431091,0.00013273,2]
[395300043,1764597050306,-165.493541,0.00010959,2]
[395300044,1764597050315,-165.493541,0.00010959,2]
[395300045,1764597050324,-165.493541,0.00011232,2]
[395300046,1764597050334,-165.493541,0.00011232,2]
[395300047,1764597050346,-165.493541,0.00011506,2]
[395300048,1764597050355,-165.493541,0.00011506,2]
[395300049,1764597050365,-165.493541,0.00012329,2]
[395300050,1764597050375,-165.493541,0.00012329,2]
[395300051,1764597050385,-38.69538851,0.00013273,2]
[395300052,1764597050395,-365.52596592,0.00013273,2]
[395300053,1764597050404,-500.0,0.00013273,2]
[395300054,1764597050414,-502.84350069,0.00013273,2]
[395300055,1764597050424,-311.47027327,0.00013273,2]
[395300056,1764597050434,-500.0,0.00013273,2]
[395300057,1764597050443,-500.0,0.00013273,2]
[395300058,1764597050453,-502.32637191,0.00013273,2]
[395300059,1764597050462,-500.0,0.00013273,2]
[395300060,1764597050472,-158.07140597,0.00013273,2]
[395300061,1764597050481,-500.0,0.00013273,2]
[395300062,1764597050490,-500.0,0.00013273,2]
[395300063,1764597050499,-500.0,0.00013273,2]
[395300064,1764597050509,-500.0,0.00013273,2]
[395300065,1764597050518,-500.0,0.00013273,2]
[395300066,1764597050527,-500.0,0.00013273,2]
[395300067,1764597050536,-500.38044569,0.00013273,2]
[395300068,1764597050545,-500.0,0.00013273,2]
[395300069,1764597050555,-500.0,0.00013273,2]
[395300070,1764597050564,-500.0,0.00013273,2]
[395300071,1764597050573,-160.10172978,0.00013273,2]
[395300072,1764597050583,-500.0,0.00013273,2]
[395300073,1764597050592,-500.0,0.00013273,2]
[395300074,1764597050601,-62.67901577,0.00013273,2]
[395300075,1764597062480,340.05,1e-05,2]
[395300076,1764597062813,340.05,1.1e-05,2]
[395300077,1764597063096,340.05,1.2e-05,2]
[395300078,1764597063408,340.05,1.2e-05,2]
[395300079,1764597063694,340.05,1.3e-05,2]
[395300080,1764597064014,340.05,1.4e-05,2]
[395300081,1764597064358,340.05,1.5e-05,2]
[395300082,1764597064641,340.05,1.5e-05,2]
[395300083,1764597065028,340.05,1.6e-05,2]
[395300084,1764597065445,340.05,1.7e-05,2]
[395300085,1764597065715,340.05,1.8e-05,2]
[395300086,1764597065982,340.05,1.8e-05,2]
[395300087,1764597066422,340.05,1.9e-05,2]
[395300088,1764597066765,340.05,2e-05,2]
[395300089,1764597067714,340.05,2.1e-05,2]
[395300091,1764597068336,340.05,2.1e-05,2]
[395300092,1764597068638,340.05,2.2e-05,2]
[395300093,1764597068944,340.05,2.3e-05,2]
[395300094,1764597069349,340.05,2.4e-05,2]
[395300095,1764597069674,340.05,2.5e-05,2]
[395300096,1764597069984,340.05,2.5e-05,2]
[395300097,1764597070372,340.05,2.6e-05,2]
[395300098,1764597070756,340.05,2.7e-05,2]
[395300099,1764597071070,340.05,2.8e-05,2]
[395300100,1764597071403,340.05,2.8e-05,2]
[395300101,1764597071753,340.05,2.9e-05,2]
[395300102,1764597072118,340.05,3e-05,2]
[395300103,1764597072509,340.05,3.1e-05,2]
[395300104,1764597072884,340.05,3.1e-05,2]
[395300105,1764597073217,138.56,3.2e-05,2]
[395300106,1764597073242,201.49,3.2e-05,2]
[395300107,1764597073528,340.05,3.3e-05,2]
[395300108,1764597073830,340.05,3.4e-05,2]
[395300109,1764597074136,340.05,3.4e-05,2]
[395300110,1764597074454,340.05,3.5e-05,2]
[395300111,1764597074751,340.05,3.6e-05,2]
[395300112,1764597075212,340.05,3.7e-05,2]
[395300113,1764597075988,340.05,3.8e-05,2]
[395300114,1764597076057,340.05,3.8e-05,2]
[395300115,1764597076391,340.05,3.9e-05,2]
[395300116,1764597076749,340.05,4e-05,2]
[395300117,1764597077095,340.05,4.1e-05,2]
[395300118,1764597077388,340.05,4.1e-05,2]
[395300119,1764597077723,340.05,4.2e-05,2]
[395300120,1764597078024,340.05,4.3e-05,2]
[395300121,1764597078337,340.05,4.4e-05,2]
[395300122,1764597078659,340.05,4.4e-05,2]
[395300124,1764597078985,340.05,4.5e-05,2]
[395300125,1764597079303,340.05,4.6e-05,2]
[395300126,1764597079598,340.05,4.7e-05,2]
[395300127,1764597079889,340.05,4.8e-05,2]
[395300128,1764597123068,340.04,1e-05,2]
[395300129,1764597123395,340.04,1.1e-05,2]
[395300130,1764597123772,340.04,1.2e-05,2]
[395300131,1764597124093,340.04,1.2e-05,2]
[395300132,1764597124448,340.04,1.3e-05,2]
[395300133,1764597124785,340.04,1.4e-05,2]
[395300134,1764597125107,340.04,1.5e-05,2]
[395300135,1764597125449,340.04,1.5e-05,2]
[395300136,1764597125812,277.2,1.6e-05,2]
[395300137,1764597125836,62.84,1.6e-05,2]
[395300138,1764597126268,340.04,1.7e-05,2]
[395300139,1764597126576,340.04,1.8e-05,2]
[395300140,1764597126908,340.04,1.8e-05,2]
[395300141,1764597127684,340.04,1.9e-05,2]
[395300142,1764597127738,340.04,2e-05,2]
[395300143,1764597128211,340.04,2.1e-05,2]
[395300144,1764597128530,340.04,2.1e-05,2]
[395300145,1764597128862,340.04,2.2e-05,2]
[395300146,1764597129216,340.04,2.3e-05,2]
[395300147,1764597129572,340.04,2.4e-05,2]
[395300148,1764597129892,340.04,2.5e-05,2]
[395300149,1764597130229,340.04,2.5e-05,2]
[395300150,1764597130571,340.04,2.6e-05,2]
[395300151,1764597130928,340.04,2.7e-05,2]
[395300152,1764597131256,340.04,2.8e-05,2]
[395300153,1764597131582,340.04,2.8e-05,2]
[395300154,1764597132012,340.04,2.9e-05,2]
[395300155,1764597132331,340.04,3e-05,2]
[395300156,1764597132779,340.04,3.1e-05,2]
[395300157,1764597133097,340.04,3.1e-05,2]
[395300158,1764597133405,340.04,3.2e-05,2]
[395300159,1764597133744,340.04,3.3e-05,2]
[395300160,1764597134152,340.04,3.4e-05,2]
[395300161,1764597134471,340.04,3.4e-05,2]
[395300162,1764597134815,340.04,3.5e-05,2]
[395300163,1764597135159,340.04,3.6e-05,2]
[395300164,1764597135474,340.04,3.7e-05,2]
[395300165,1764597135788,340.04,3.8e-05,2]
[395300166,1764597136102,340.04,3.8e-05,2]
[395300167,1764597136422,76.01,3.9e-05,2]
[395300168,1764597136447,264.03,3.9e-05,2]
[395300169,1764597136751,340.04,4e-05,2]
[395300170,1764597137077,340.04,4.1e-05,2]
[395300171,1764597137419,340.04,4.1e-05,2]
[395300172,1764597137948,340.04,4.2e-05,2]
[395300173,1764597138044,340.04,4.3e-05,2]
[395300174,1764597138355,340.04,4.4e-05,2]
[395300175,1764597138699,340.04,4.4e-05,2]
[395300176,1764597139030,340.04,4.5e-05,2]
[395300177,1764597139376,340.04,4.6e-05,2]
[395300178,1764597139767,340.04,4.7e-05,2]
[395300179,1764597140047,340.04,4.8e-05,2]
[395300180,1764597183305,151.13,1e-05,2]
[395300181,1764597183591,151.13,1.1e-05,2]
[395300182,1764597183970,151.13,1.2e-05,2]
[395300183,1764597184316,151.13,1.3e-05,2]
[395300184,1764597184635,151.13,1.3e-05,2]
[395300185,1764597184952,151.13,1.4e-05,2]
[395300186,1764597185554,151.13,1.5e-05,2]
[395300187,1764597185724,151.13,1.6e-05,2]
[395300188,1764597186154,151.13,1.7e-05,2]
[395300189,1764597186555,151.13,1.8e-05,2]
[395300190,1764597186899,151.13,1.9e-05,2]
[395300191,1764597187246,151.13,1.9e-05,2]
[395300192,1764597187559,151.13,2e-05,2]
[395300193,1764597187922,151.13,2.1e-05,2]
[395300194,1764597188230,151.13,2.2e-05,2]
[395300195,1764597188540,151.13,2.3e-05,2]
[395300196,1764597188889,151.13,2.4e-05,2]
[395300197,1764597189222,151.13,2.4e-05,2]
[395300198,1764597189716,151.13,2.5e-05,2]
[395300199,1764597190053,151.13,2.6e-05,2]
[395300200,1764597191185,151.13,2.7e-05,2]
[395300201,1764597191673,151.13,2.8e-05,2]
[395300202,1764597192241,151.13,2.9e-05,2]
[395300203,1764597192547,151.13,3e-05,2]
[395300204,1764597192959,151.13,3e-05,2]
[395300205,1764597193276,151.13,3.1e-05,2]
[395300206,1764597193595,151.13,3.2e-05,2]
[395300207,1764597193632,-1364.16763428,8.481e-05,2]
[395300208,1764597193664,-300.0,8.554e-05,2]
[395300209,1764597194253,151.13,3.3e-05,2]
[395300210,1764597194380,151.13,3.4e-05,2]
[395300211,1764597194585,151.13,3.5e-05,2]
[395300212,1764597194930,151.13,3.6e-05,2]
[395300213,1764597195276,151.13,3.6e-05,2]
[395300214,1764597195636,151.13,3.7e-05,2]
[395300215,1764597196085,151.13,3.8e-05,2]
[395300216,1764597196378,151.13,3.9e-05,2]
[395300217,1764597196672,151.13,4e-05,2]
[395300218,1764597197109,151.13,4.1e-05,2]
[395300219,1764597197484,151.13,4.2e-05,2]
[395300220,1764597197954,151.13,4.2e-05,2]
[395300221,1764597198262,151.13,4.3e-05,2]
[395300222,1764597198578,151.13,4.4e-05,2]
[395300223,1764597199077,151.13,4.5e-05,2]
[395300224,1764597199404,151.13,4.6e-05,2]
[395300225,1764597200459,151.13,4.7e-05,2]
[395300226,1764597201036,151.13,4.8e-05,2]
[395300227,1764597201532,698.2592859,8.469e-05,2]
[395300229,1764597223683,481.47410754,8.469e-05,2]
[395300238,1764597242767,300.0,8.554e-05,2]
[395300239,1764597271970,266.35257744,8.554e-05,2]
[395300240,1764597273272,500.0,8.554e-05,2]
[395300241,1764597273304,500.0,8.554e-05,2]
[395300242,1764597273332,285.65620859,8.554e-05,2]
[395300243,1764597273366,500.0,8.554e-05,2]
[395300244,1764597273402,419.59255197,8.554e-05,2]
[395300245,1764597273426,204.65201764,8.554e-05,2]
[395300246,1764597273469,500.0,8.554e-05,2]
[395300247,1764597273509,500.0,8.554e-05,2]
[395300248,1764597273553,592.43073317,8.554e-05,2]
[395300249,1764597273583,363.41237386,8.554e-05,2]
[395300250,1764597273617,170.49008038,8.554e-05,2]
[395300251,1764597273666,500.0,8.554e-05,2]
[395300252,1764597273710,499.70805564,8.554e-05,2]
[395300253,1764597280682,500.0,8.554e-05,2]
[395300254,1764597301472,300.0,8.554e-05,2]
[395300255,1764597303210,300.0,8.554e-05,2]
[395300256,1764597303244,300.0,8.554e-05,2]
[395300257,1764597303330,300.0,8.554e-05,2]
[395300258,1764597318531,1200.0,8.554e-05,2]
[395300259,1764597337327,435.98059187,8.469e-05,2]
[395300260,1764597345488,3333.33614744,8.469e-05,2]
[395300261,1764597345512,7847.28571189,8.469e-05,2]
[395300262,1764597361096,262.03,8.469e-05,2]
[395300263,1764597362623,159.62,1e-05,2]
[395300264,1764597362687,300.0,8.554e-05,2]
[395300265,1764597363631,159.62,1.3e-05,2]
[395300266,1764597363991,159.62,1.5e-05,2]
[395300267,1764597364333,159.62,1.8e-05,2]
[395300268,1764597364890,159.62,2.1e-05,2]
[395300269,1764597365276,159.62,2.3e-05,2]
[395300270,1764597365397,159.62,2.6e-05,2]
[395300271,1764597365655,159.62,2.9e-05,2]